[Event "*** Titled Tuesday Blitz"]
[Site "Chess.com"]
[Date "2020.04.21"]
[Round "9"]
[White "shyam"]
[Black "Alexander_Donchenko"]
[Result "0-1"]
[WhiteElo "2653"]
[BlackElo "2800"]
[TimeControl "180+1"]
[EndTime "11:47:11 PDT"]
[Termination "Alexander_Donchenko won by resignation"]

1. Nc3 {[%clk 0:03:00.9]} 1... Nf6 {[%clk 0:02:58.2]} 2. e4 {[%clk 0:02:59.1]}
2... d5 {[%clk 0:02:58.6]} 3. exd5 {[%clk 0:02:57.9]} 3... Nxd5 {[%clk
0:02:59.5]} 4. Bc4 {[%clk 0:02:58.2]} 4... c6 {[%clk 0:02:59]} 5. Qf3 {[%clk
0:02:55.8]} 5... e6 {[%clk 0:02:58.5]} 6. Nge2 {[%clk 0:02:56]} 6... Be7 {[%clk
0:02:58.5]} 7. d4 {[%clk 0:02:56.2]} 7... O-O {[%clk 0:02:58.4]} 8. a3 {[%clk
0:02:52.3]} 8... Nd7 {[%clk 0:02:56.4]} 9. O-O {[%clk 0:02:47.9]} 9... b6 {[%clk
0:02:56.4]} 10. Nxd5 {[%clk 0:02:46.9]} 10... cxd5 {[%clk 0:02:52]} 11. Bd3
{[%clk 0:02:46.5]} 11... a5 {[%clk 0:02:51.9]} 12. Nf4 {[%clk 0:02:34.7]} 12...
Ba6 {[%clk 0:02:50.2]} 13. Bxa6 {[%clk 0:02:35.1]} 13... Rxa6 {[%clk 0:02:51.1]}
14. a4 {[%clk 0:02:36]} 14... Ra8 {[%clk 0:02:50.2]} 15. c3 {[%clk 0:02:34.4]}
15... Nf6 {[%clk 0:02:49.3]} 16. Nd3 {[%clk 0:02:33.8]} 16... Ne4 {[%clk
0:02:48.2]} 17. Qe2 {[%clk 0:02:33.5]} 17... Rc8 {[%clk 0:02:45.9]} 18. f3
{[%clk 0:02:32.6]} 18... Nd6 {[%clk 0:02:46]} 19. Bf4 {[%clk 0:02:27.2]} 19...
Nc4 {[%clk 0:02:45.9]} 20. Kh1 {[%clk 0:02:25.7]} 20... Bd6 {[%clk 0:02:41.1]}
21. Be5 {[%clk 0:02:18.2]} 21... Qd7 {[%clk 0:02:28.4]} 22. f4 {[%clk
0:02:16.1]} 22... Be7 {[%clk 0:02:28.3]} 23. f5 {[%clk 0:01:56.4]} 23... exf5
{[%clk 0:02:27.1]} 24. Qh5 {[%clk 0:01:55.4]} 24... g6 {[%clk 0:02:19.9]} 25.
Qh6 {[%clk 0:01:51.9]} 25... f6 {[%clk 0:02:13.1]} 26. Bg3 {[%clk 0:01:49.5]}
26... Bd6 {[%clk 0:02:12.6]} 27. Bxd6 {[%clk 0:01:38.1]} 27... Nxd6 {[%clk
0:02:13.5]} 28. h4 {[%clk 0:01:30.3]} 28... Rce8 {[%clk 0:02:07.8]} 29. Rae1
{[%clk 0:01:26.9]} 29... Re4 {[%clk 0:02:04.9]} 30. Nf2 {[%clk 0:01:21]} 30...
Nf7 {[%clk 0:02:01.9]} 31. Qd2 {[%clk 0:01:18.5]} 31... Rxh4+ {[%clk 0:02:01.8]}
32. Kg1 {[%clk 0:01:19.4]} 32... Qd6 {[%clk 0:01:53.9]} 33. Nh3 {[%clk
0:01:17.2]} 33... Ng5 {[%clk 0:01:53.2]} 34. Re3 {[%clk 0:01:17.7]} 34... Nxh3+
{[%clk 0:01:52]} 35. gxh3 {[%clk 0:01:16.5]} 35... Re4 {[%clk 0:01:51]} 36. Rxe4
{[%clk 0:01:16.4]} 36... Qg3+ {[%clk 0:01:48.8]} 0-1

[Event "*** Titled Tuesday Blitz"]
[Site "Chess.com"]
[Date "2020.04.21"]
[Round "9"]
[White "Alexchess1984"]
[Black "Gareth-Bale11"]
[Result "0-1"]
[WhiteElo "2572"]
[BlackElo "2746"]
[TimeControl "180+1"]
[EndTime "11:47:32 PDT"]
[Termination "Gareth-Bale11 won by resignation"]

1. e4 {[%clk 0:02:52.6]} 1... e5 {[%clk 0:02:58.8]} 2. Nf3 {[%clk 0:02:51]} 2...
Nc6 {[%clk 0:02:58.1]} 3. Bb5 {[%clk 0:02:50.8]} 3... a6 {[%clk 0:02:56.7]} 4.
Ba4 {[%clk 0:02:51]} 4... Nf6 {[%clk 0:02:57.3]} 5. O-O {[%clk 0:02:50.7]} 5...
Be7 {[%clk 0:02:54.2]} 6. Re1 {[%clk 0:02:49.5]} 6... b5 {[%clk 0:02:50.5]} 7.
Bb3 {[%clk 0:02:49.7]} 7... d6 {[%clk 0:02:50.8]} 8. a4 {[%clk 0:02:49.9]} 8...
Bd7 {[%clk 0:02:45.9]} 9. Nc3 {[%clk 0:02:47.3]} 9... Na5 {[%clk 0:02:43.4]} 10.
Ba2 {[%clk 0:02:47.3]} 10... b4 {[%clk 0:02:38.9]} 11. Nd5 {[%clk 0:02:45.8]}
11... b3 {[%clk 0:02:29.4]} 12. Nxf6+ {[%clk 0:02:37.5]} 12... Bxf6 {[%clk
0:02:27.6]} 13. cxb3 {[%clk 0:02:36.2]} 13... Nc6 {[%clk 0:02:26]} 14. b4 {[%clk
0:02:29.7]} 14... Nxb4 {[%clk 0:02:24.8]} 15. Bxf7+ {[%clk 0:02:29.5]} 15...
Kxf7 {[%clk 0:02:21.5]} 16. Qb3+ {[%clk 0:02:29.5]} 16... Be6 {[%clk 0:02:22.1]}
17. Qxb4 {[%clk 0:02:30]} 17... c5 {[%clk 0:02:23]} 18. Qb7+ {[%clk 0:02:21.4]}
18... Qe7 {[%clk 0:02:18.1]} 19. Qxe7+ {[%clk 0:02:20.9]} 19... Kxe7 {[%clk
0:02:19]} 20. d3 {[%clk 0:02:17.6]} 20... Rab8 {[%clk 0:02:18]} 21. Ra3 {[%clk
0:02:10.4]} 21... Rb4 {[%clk 0:02:14.7]} 22. Nd2 {[%clk 0:02:00.2]} 22... Rhb8
{[%clk 0:02:12.4]} 23. Kf1 {[%clk 0:01:53.8]} 23... Bd7 {[%clk 0:01:42]} 24. a5
{[%clk 0:01:35.3]} 24... Bb5 {[%clk 0:01:32.4]} 25. Ke2 {[%clk 0:01:31.5]} 25...
Bg5 {[%clk 0:01:22]} 26. f3 {[%clk 0:01:28.9]} 26... Ke6 {[%clk 0:01:15.2]} 27.
b3 {[%clk 0:01:26]} 27... Bc6 {[%clk 0:01:05.9]} 28. Nc4 {[%clk 0:01:21.8]}
28... Bxc1 {[%clk 0:01:04.9]} 29. Rd1 {[%clk 0:01:22.7]} 29... Bxa3 {[%clk
0:01:02.6]} 30. Rc1 {[%clk 0:01:23.6]} 30... Bxc1 {[%clk 0:01:02.3]} 0-1

[Event "*** Titled Tuesday Blitz"]
[Site "Chess.com"]
[Date "2020.04.21"]
[Round "9"]
[White "Beca95"]
[Black "Muracle"]
[Result "1-0"]
[WhiteElo "2871"]
[BlackElo "2643"]
[TimeControl "180+1"]
[EndTime "11:47:37 PDT"]
[Termination "Beca95 won by resignation"]

1. d4 {[%clk 0:03:00.9]} 1... Nf6 {[%clk 0:02:59.9]} 2. Nf3 {[%clk 0:03:00.1]}
2... g6 {[%clk 0:03:00]} 3. Bg5 {[%clk 0:02:59.4]} 3... Bg7 {[%clk 0:02:59.9]}
4. Nbd2 {[%clk 0:02:59.6]} 4... O-O {[%clk 0:02:59.7]} 5. c3 {[%clk 0:02:59.4]}
5... c5 {[%clk 0:02:58.6]} 6. Bxf6 {[%clk 0:02:57.3]} 6... Bxf6 {[%clk
0:02:57.5]} 7. Ne4 {[%clk 0:02:57.5]} 7... Bg7 {[%clk 0:02:57.7]} 8. Nxc5 {[%clk
0:02:57.4]} 8... Nc6 {[%clk 0:02:57.7]} 9. e3 {[%clk 0:02:57]} 9... d6 {[%clk
0:02:57.6]} 10. Nb3 {[%clk 0:02:57.1]} 10... e5 {[%clk 0:02:57.1]} 11. dxe5
{[%clk 0:02:57.1]} 11... dxe5 {[%clk 0:02:56]} 12. e4 {[%clk 0:02:57.4]} 12...
Qe7 {[%clk 0:02:52.1]} 13. Nbd2 {[%clk 0:02:56.7]} 13... Be6 {[%clk 0:02:44.7]}
14. Bc4 {[%clk 0:02:56.6]} 14... Rad8 {[%clk 0:02:37.9]} 15. Bxe6 {[%clk
0:02:55.5]} 15... Qxe6 {[%clk 0:02:38.8]} 16. Qb3 {[%clk 0:02:55.4]} 16... Qg4
{[%clk 0:02:26.1]} 17. O-O {[%clk 0:02:55]} 17... b6 {[%clk 0:02:22.4]} 18. Rfe1
{[%clk 0:02:52.3]} 18... Kh8 {[%clk 0:02:20]} 19. h3 {[%clk 0:02:50.3]} 19...
Qc8 {[%clk 0:02:18.9]} 20. Nc4 {[%clk 0:02:46.3]} 20... Qc7 {[%clk 0:02:14.9]}
21. Ne3 {[%clk 0:02:45.2]} 21... Na5 {[%clk 0:02:13.3]} 22. Qc2 {[%clk
0:02:44.7]} 22... Qb7 {[%clk 0:02:06.4]} 23. Rad1 {[%clk 0:02:42.9]} 23... h6
{[%clk 0:02:03]} 24. Nd5 {[%clk 0:02:41.2]} 24... Nc4 {[%clk 0:01:59.4]} 25. b3
{[%clk 0:02:39.3]} 25... Nd6 {[%clk 0:01:59.7]} 26. c4 {[%clk 0:02:39.3]} 26...
f5 {[%clk 0:01:57.3]} 27. exf5 {[%clk 0:02:37.7]} 27... gxf5 {[%clk 0:01:56.9]}
28. Nxe5 {[%clk 0:02:36.6]} 28... Kh7 {[%clk 0:01:53.4]} 29. Nf3 {[%clk
0:02:29.9]} 29... Ne4 {[%clk 0:01:52.6]} 30. Rxe4 {[%clk 0:02:19.8]} 30... fxe4
{[%clk 0:01:52.6]} 31. Qxe4+ {[%clk 0:02:20]} 31... Kg8 {[%clk 0:01:50.3]} 32.
Nf6+ {[%clk 0:02:02.6]} 32... Bxf6 {[%clk 0:01:49.5]} 33. Qxb7 {[%clk
0:02:02.3]} 33... Rxd1+ {[%clk 0:01:50.1]} 34. Kh2 {[%clk 0:02:02]} 34... Bg7
{[%clk 0:01:48.2]} 35. Qxa7 {[%clk 0:01:58.5]} 35... Rd6 {[%clk 0:01:42.8]} 36.
c5 {[%clk 0:01:53.2]} 36... bxc5 {[%clk 0:01:40]} 37. Qxc5 {[%clk 0:01:53.5]}
37... Rfd8 {[%clk 0:01:30.4]} 38. a4 {[%clk 0:01:52.4]} 38... Rd3 {[%clk
0:01:28]} 39. a5 {[%clk 0:01:50.1]} 39... Bf8 {[%clk 0:01:27]} 40. Qc4+ {[%clk
0:01:49.3]} 40... Kh7 {[%clk 0:01:26.1]} 41. Ne5 {[%clk 0:01:49.3]} 41... R3d5
{[%clk 0:01:20.5]} 42. Qe4+ {[%clk 0:01:47.1]} 42... Kg8 {[%clk 0:01:18.4]} 43.
Qg4+ {[%clk 0:01:45.6]} 43... Bg7 {[%clk 0:01:13.7]} 44. f4 {[%clk 0:01:43.5]}
44... Rf8 {[%clk 0:01:11.6]} 45. Qe6+ {[%clk 0:01:41.9]} 1-0

[Event "*** Titled Tuesday Blitz"]
[Site "Chess.com"]
[Date "2020.04.21"]
[Round "9"]
[White "HanSchut"]
[Black "IMAghasiyevKamal"]
[Result "0-1"]
[WhiteElo "2265"]
[BlackElo "2508"]
[TimeControl "180+1"]
[EndTime "11:47:46 PDT"]
[Termination "IMAghasiyevKamal won by resignation"]

1. e4 {[%clk 0:03:00.9]} 1... e5 {[%clk 0:02:58.7]} 2. Nf3 {[%clk 0:03:01.2]}
2... Nc6 {[%clk 0:02:58.7]} 3. Bc4 {[%clk 0:03:01.7]} 3... Bc5 {[%clk
0:02:57.6]} 4. b4 {[%clk 0:03:01.7]} 4... Bxb4 {[%clk 0:02:57.2]} 5. c3 {[%clk
0:03:02.2]} 5... Bc5 {[%clk 0:02:57.3]} 6. d4 {[%clk 0:03:01.3]} 6... exd4
{[%clk 0:02:57.4]} 7. O-O {[%clk 0:03:01.6]} 7... d6 {[%clk 0:02:52.5]} 8. cxd4
{[%clk 0:03:00.3]} 8... Bb6 {[%clk 0:02:52.2]} 9. d5 {[%clk 0:03:00.9]} 9... Na5
{[%clk 0:02:48.2]} 10. Bd3 {[%clk 0:03:00.8]} 10... Ne7 {[%clk 0:02:47.5]} 11.
Bb2 {[%clk 0:02:52.3]} 11... O-O {[%clk 0:02:44.1]} 12. Nbd2 {[%clk 0:02:52.2]}
12... Ng6 {[%clk 0:02:42.6]} 13. Qc2 {[%clk 0:02:49]} 13... f6 {[%clk
0:02:25.3]} 14. a4 {[%clk 0:02:38.7]} 14... c5 {[%clk 0:02:24.2]} 15. dxc6
{[%clk 0:02:32.3]} 15... Nxc6 {[%clk 0:02:22.2]} 16. Qc3 {[%clk 0:02:07.8]}
16... Be6 {[%clk 0:02:16.4]} 17. a5 {[%clk 0:02:07.3]} 17... Bxa5 {[%clk
0:02:13.8]} 18. Rxa5 {[%clk 0:01:51.1]} 18... Qxa5 {[%clk 0:02:13]} 19. Qc1
{[%clk 0:01:44.5]} 19... Nce5 {[%clk 0:01:56.9]} 20. Be2 {[%clk 0:01:33.4]}
20... Nf4 {[%clk 0:01:46.8]} 21. Qd1 {[%clk 0:01:08.5]} 21... Rac8 {[%clk
0:01:33.1]} 22. Nd4 {[%clk 0:01:03.7]} 22... Bf7 {[%clk 0:01:24.7]} 23. Nf5
{[%clk 0:00:56.5]} 23... Rcd8 {[%clk 0:01:19.5]} 24. g3 {[%clk 0:00:44.5]} 24...
Nxe2+ {[%clk 0:01:17.2]} 25. Qxe2 {[%clk 0:00:45.4]} 25... Qxd2 {[%clk
0:01:17.1]} 0-1

[Event "*** Titled Tuesday Blitz"]
[Site "Chess.com"]
[Date "2020.04.21"]
[Round "9"]
[White "Jumbo"]
[Black "RaphaeI"]
[Result "0-1"]
[WhiteElo "2816"]
[BlackElo "2679"]
[TimeControl "180+1"]
[EndTime "11:47:50 PDT"]
[Termination "RaphaeI won by resignation"]

1. Nf3 {[%clk 0:03:00.9]} 1... Nf6 {[%clk 0:02:58.6]} 2. g3 {[%clk 0:03:01.3]}
2... g6 {[%clk 0:02:58.5]} 3. Bg2 {[%clk 0:03:02.2]} 3... Bg7 {[%clk 0:02:59.1]}
4. c4 {[%clk 0:03:02.5]} 4... O-O {[%clk 0:02:58.7]} 5. d4 {[%clk 0:03:02.6]}
5... c5 {[%clk 0:02:55.9]} 6. d5 {[%clk 0:03:02.3]} 6... d6 {[%clk 0:02:52]} 7.
Nc3 {[%clk 0:02:59.5]} 7... e6 {[%clk 0:02:52.2]} 8. O-O {[%clk 0:02:58.9]} 8...
exd5 {[%clk 0:02:52.6]} 9. cxd5 {[%clk 0:02:59.8]} 9... Re8 {[%clk 0:02:53.2]}
10. Bf4 {[%clk 0:02:59.5]} 10... Ne4 {[%clk 0:02:43.8]} 11. Nxe4 {[%clk
0:02:58.8]} 11... Rxe4 {[%clk 0:02:44.7]} 12. Nd2 {[%clk 0:02:59.4]} 12... Rxf4
{[%clk 0:02:39.4]} 13. gxf4 {[%clk 0:03:00.3]} 13... Bxb2 {[%clk 0:02:39.6]} 14.
Rb1 {[%clk 0:03:00.3]} 14... Bg7 {[%clk 0:02:37.8]} 15. e4 {[%clk 0:03:00.3]}
15... Nd7 {[%clk 0:02:25.7]} 16. Re1 {[%clk 0:02:53]} 16... Qf6 {[%clk
0:02:08.4]} 17. e5 {[%clk 0:02:17.6]} 17... Qxf4 {[%clk 0:01:55.8]} 18. Re4
{[%clk 0:02:13.7]} 18... Qg5 {[%clk 0:01:48]} 19. f4 {[%clk 0:01:58.7]} 19...
Qd8 {[%clk 0:01:47.3]} 20. Nc4 {[%clk 0:01:57.9]} 20... dxe5 {[%clk 0:01:43.5]}
21. fxe5 {[%clk 0:01:57.4]} 21... b5 {[%clk 0:01:32.6]} 22. e6 {[%clk
0:01:45.6]} 22... bxc4 {[%clk 0:01:28.6]} 23. e7 {[%clk 0:01:44.6]} 23... Qe8
{[%clk 0:01:28.6]} 24. d6 {[%clk 0:01:44.8]} 24... Nb6 {[%clk 0:01:21.4]} 25.
Rxc4 {[%clk 0:01:24.8]} 25... Nxc4 {[%clk 0:01:18.6]} 26. Bxa8 {[%clk
0:01:23.4]} 26... Bd4+ {[%clk 0:01:18.7]} 27. Kh1 {[%clk 0:01:13.9]} 27... Nxd6
{[%clk 0:01:14.4]} 28. Qe2 {[%clk 0:01:08.9]} 28... Be6 {[%clk 0:01:10.1]} 0-1

[Event "*** Titled Tuesday Blitz"]
[Site "Chess.com"]
[Date "2020.04.21"]
[Round "9"]
[White "INLOVEWITHF"]
[Black "Raja3401"]
[Result "1-0"]
[WhiteElo "2535"]
[BlackElo "2681"]
[TimeControl "180+1"]
[EndTime "11:47:50 PDT"]
[Termination "INLOVEWITHF won by resignation"]

1. d4 {[%clk 0:03:00.9]} 1... Nf6 {[%clk 0:02:59.9]} 2. c4 {[%clk 0:03:00.5]}
2... e6 {[%clk 0:03:00.8]} 3. Nc3 {[%clk 0:02:58.6]} 3... Bb4 {[%clk 0:03:01.1]}
4. f3 {[%clk 0:02:57.1]} 4... d5 {[%clk 0:02:58.3]} 5. a3 {[%clk 0:02:55]} 5...
Be7 {[%clk 0:02:57.4]} 6. e4 {[%clk 0:02:54]} 6... dxe4 {[%clk 0:02:57.7]} 7.
fxe4 {[%clk 0:02:53.5]} 7... c5 {[%clk 0:02:58]} 8. d5 {[%clk 0:02:52.3]} 8...
exd5 {[%clk 0:02:57.9]} 9. exd5 {[%clk 0:02:50.8]} 9... O-O {[%clk 0:02:56.8]}
10. Be2 {[%clk 0:02:48.5]} 10... Bd6 {[%clk 0:02:51.9]} 11. Nf3 {[%clk
0:02:43.8]} 11... Bg4 {[%clk 0:02:51.6]} 12. O-O {[%clk 0:02:40]} 12... Re8
{[%clk 0:02:51.1]} 13. Nb5 {[%clk 0:02:35.5]} 13... a6 {[%clk 0:02:35.2]} 14.
Nxd6 {[%clk 0:02:34.5]} 14... Qxd6 {[%clk 0:02:36.1]} 15. h3 {[%clk 0:02:28.6]}
15... Bh5 {[%clk 0:02:33.5]} 16. b3 {[%clk 0:02:26.5]} 16... Ne4 {[%clk
0:02:30.9]} 17. Ng5 {[%clk 0:02:20.6]} 17... Bxe2 {[%clk 0:02:25.9]} 18. Qxe2
{[%clk 0:02:15.8]} 18... Qg6 {[%clk 0:02:09]} 19. Re1 {[%clk 0:02:13.8]} 19...
f5 {[%clk 0:02:05.8]} 20. Nxe4 {[%clk 0:02:11.3]} 20... Rxe4 {[%clk 0:02:04.1]}
21. Qd2 {[%clk 0:02:11.6]} 21... Nd7 {[%clk 0:02:01.1]} 22. Rxe4 {[%clk
0:02:06.8]} 22... fxe4 {[%clk 0:02:02]} 23. Qg5 {[%clk 0:02:07.3]} 23... Qf6
{[%clk 0:01:56.8]} 24. Qxf6 {[%clk 0:02:03]} 24... gxf6 {[%clk 0:01:57.7]} 25.
Kf2 {[%clk 0:01:59.6]} 25... Kf7 {[%clk 0:01:57.1]} 26. g4 {[%clk 0:01:56.2]}
26... b5 {[%clk 0:01:56.2]} 27. Bf4 {[%clk 0:01:51]} 27... Ra7 {[%clk
0:01:47.9]} 28. Ke3 {[%clk 0:01:48.1]} 28... Nb6 {[%clk 0:01:46]} 29. Rc1 {[%clk
0:01:45.2]} 29... bxc4 {[%clk 0:01:39.6]} 30. bxc4 {[%clk 0:01:46.1]} 30... Rb7
{[%clk 0:01:36.9]} 31. Kxe4 {[%clk 0:01:45.8]} 31... Nd7 {[%clk 0:01:37]} 32.
Kf5 {[%clk 0:01:42.5]} 32... Rb3 {[%clk 0:01:35.9]} 33. Re1 {[%clk 0:01:41]}
33... Rf3 {[%clk 0:01:34.1]} 34. Re6 {[%clk 0:01:38.1]} 34... Rxa3 {[%clk
0:01:30.1]} 35. d6 {[%clk 0:01:35.5]} 35... Nf8 {[%clk 0:01:26.4]} 36. Re7+
{[%clk 0:01:35.5]} 36... Kg8 {[%clk 0:01:26.9]} 37. Kxf6 {[%clk 0:01:29.9]}
37... Rf3 {[%clk 0:01:27.1]} 38. Re4 {[%clk 0:01:30.4]} 38... Rd3 {[%clk
0:01:22.4]} 39. Re8 {[%clk 0:01:26.5]} 39... a5 {[%clk 0:01:21]} 40. Ke7 {[%clk
0:01:24.4]} 1-0

[Event "*** Titled Tuesday Blitz"]
[Site "Chess.com"]
[Date "2020.04.21"]
[Round "9"]
[White "FeketeBarika"]
[Black "FearNoEvil12"]
[Result "1/2-1/2"]
[WhiteElo "2268"]
[BlackElo "2036"]
[TimeControl "180+1"]
[EndTime "11:47:52 PDT"]
[Termination "Game drawn by repetition"]

1. Nf3 {[%clk 0:03:00.9]} 1... d5 {[%clk 0:02:57.7]} 2. g3 {[%clk 0:02:57.9]}
2... Nf6 {[%clk 0:02:58]} 3. Bg2 {[%clk 0:02:58.8]} 3... c6 {[%clk 0:02:56.4]}
4. c4 {[%clk 0:02:59]} 4... e6 {[%clk 0:02:54.3]} 5. O-O {[%clk 0:02:58.3]} 5...
Bd6 {[%clk 0:02:54.1]} 6. b3 {[%clk 0:02:57.2]} 6... Nbd7 {[%clk 0:02:54.3]} 7.
Bb2 {[%clk 0:02:57.6]} 7... O-O {[%clk 0:02:50.9]} 8. d3 {[%clk 0:02:58.1]} 8...
e5 {[%clk 0:02:47.9]} 9. Nbd2 {[%clk 0:02:45.2]} 9... Qe7 {[%clk 0:02:46.7]} 10.
e4 {[%clk 0:02:45.2]} 10... dxe4 {[%clk 0:02:38.3]} 11. dxe4 {[%clk 0:02:46.1]}
11... Bc5 {[%clk 0:02:34.4]} 12. a3 {[%clk 0:02:43.9]} 12... a5 {[%clk
0:02:32.7]} 13. Qc2 {[%clk 0:02:43.3]} 13... Re8 {[%clk 0:02:29]} 14. Bc3 {[%clk
0:02:34.7]} 14... Bb6 {[%clk 0:02:12.8]} 15. b4 {[%clk 0:02:33.6]} 15... axb4
{[%clk 0:02:11.4]} 16. axb4 {[%clk 0:02:34.5]} 16... Rxa1 {[%clk 0:02:10]} 17.
Rxa1 {[%clk 0:02:32.4]} 17... Bc7 {[%clk 0:02:09.4]} 18. c5 {[%clk 0:02:31.3]}
18... Nf8 {[%clk 0:02:03.2]} 19. Qb2 {[%clk 0:02:29.2]} 19... Ng6 {[%clk
0:02:00.6]} 20. Nc4 {[%clk 0:02:28.5]} 20... Nxe4 {[%clk 0:01:57.5]} 21. Bxe5
{[%clk 0:02:03.1]} 21... Nxe5 {[%clk 0:01:54.5]} 22. Nfxe5 {[%clk 0:02:04]}
22... Bxe5 {[%clk 0:01:51.2]} 23. Nxe5 {[%clk 0:02:04.9]} 23... Qxe5 {[%clk
0:01:44]} 24. Qxe5 {[%clk 0:02:05.4]} 24... Rxe5 {[%clk 0:01:43.6]} 25. Ra8
{[%clk 0:02:05.6]} 25... Re8 {[%clk 0:01:42.7]} 26. Bxe4 {[%clk 0:02:05.2]}
26... g6 {[%clk 0:01:41.3]} 27. Bd3 {[%clk 0:01:54.4]} 27... Kf8 {[%clk
0:01:39.7]} 28. Ra1 {[%clk 0:01:50.7]} 28... Bg4 {[%clk 0:01:36.5]} 29. Rc1
{[%clk 0:01:46.5]} 29... Bf3 {[%clk 0:01:34.9]} 30. h3 {[%clk 0:01:46.5]} 30...
Rd8 {[%clk 0:01:32.4]} 31. Bf1 {[%clk 0:01:45.5]} 31... Rd4 {[%clk 0:01:26.3]}
32. b5 {[%clk 0:01:45.2]} 32... cxb5 {[%clk 0:01:22.8]} 33. Bxb5 {[%clk
0:01:46.1]} 33... Kg7 {[%clk 0:01:13.8]} 34. c6 {[%clk 0:01:44.8]} 34... bxc6
{[%clk 0:01:12.7]} 35. Bxc6 {[%clk 0:01:45.7]} 35... Bxc6 {[%clk 0:01:11.6]} 36.
Rxc6 {[%clk 0:01:46.6]} 36... Rd2 {[%clk 0:01:10.1]} 37. Kg2 {[%clk 0:01:46.1]}
37... h5 {[%clk 0:01:07.6]} 38. g4 {[%clk 0:01:44.2]} 38... hxg4 {[%clk
0:01:06]} 39. hxg4 {[%clk 0:01:45.1]} 39... Ra2 {[%clk 0:01:02.6]} 40. Kg3
{[%clk 0:01:44.9]} 40... g5 {[%clk 0:01:01.8]} 41. f3 {[%clk 0:01:44.4]} 41...
Ra1 {[%clk 0:00:59.3]} 42. Rb6 {[%clk 0:01:43]} 42... f6 {[%clk 0:00:58.2]} 43.
Rb7+ {[%clk 0:01:42]} 43... Kg6 {[%clk 0:00:58.7]} 44. Rb8 {[%clk 0:01:42.5]}
44... Ra2 {[%clk 0:00:56.8]} 45. Rb7 {[%clk 0:01:41.9]} 45... Ra3 {[%clk
0:00:55.8]} 46. Rc7 {[%clk 0:01:41.2]} 46... Ra2 {[%clk 0:00:55.2]} 47. Rb7
{[%clk 0:01:40.9]} 47... Ra3 {[%clk 0:00:54.6]} 48. Rc7 {[%clk 0:01:41.2]} 48...
Ra2 {[%clk 0:00:54.6]} 49. Rb7 {[%clk 0:01:41.2]} 1/2-1/2

[Event "*** Titled Tuesday Blitz"]
[Site "Chess.com"]
[Date "2020.04.21"]
[Round "9"]
[White "Maybe00"]
[Black "SPEEDSKATER"]
[Result "0-1"]
[WhiteElo "2655"]
[BlackElo "2787"]
[TimeControl "180+1"]
[EndTime "11:48:00 PDT"]
[Termination "SPEEDSKATER won by resignation"]

1. d4 {[%clk 0:03:00.9]} 1... d5 {[%clk 0:02:56.2]} 2. c4 {[%clk 0:03:00.9]}
2... c6 {[%clk 0:02:51.2]} 3. Nf3 {[%clk 0:03:00.2]} 3... Nf6 {[%clk 0:02:50.3]}
4. Nc3 {[%clk 0:03:00.3]} 4... a6 {[%clk 0:02:48.4]} 5. g3 {[%clk 0:02:56]} 5...
dxc4 {[%clk 0:02:46.3]} 6. Bg2 {[%clk 0:02:56.1]} 6... e6 {[%clk 0:02:43.4]} 7.
O-O {[%clk 0:02:55.3]} 7... b5 {[%clk 0:02:42.4]} 8. Ne5 {[%clk 0:02:55.2]} 8...
Bb7 {[%clk 0:02:41.5]} 9. b3 {[%clk 0:02:54.9]} 9... cxb3 {[%clk 0:02:33.6]} 10.
axb3 {[%clk 0:02:55.8]} 10... Nbd7 {[%clk 0:02:27.9]} 11. Qc2 {[%clk 0:02:37.1]}
11... Rc8 {[%clk 0:02:18.3]} 12. Ne4 {[%clk 0:02:29.5]} 12... Nxe4 {[%clk
0:02:17.4]} 13. Bxe4 {[%clk 0:02:29.7]} 13... Nxe5 {[%clk 0:02:13.4]} 14. dxe5
{[%clk 0:02:30.6]} 14... Qc7 {[%clk 0:02:13.2]} 15. Bxh7 {[%clk 0:01:59.5]}
15... Qxe5 {[%clk 0:02:04]} 16. Rd1 {[%clk 0:00:52.9]} 16... Qxa1 {[%clk
0:01:45.1]} 17. Qd2 {[%clk 0:00:39]} 17... Be7 {[%clk 0:01:41.3]} 18. Bb2 {[%clk
0:00:37.7]} 18... Qxd1+ {[%clk 0:01:37.2]} 19. Qxd1 {[%clk 0:00:37.1]} 19...
Rxh7 {[%clk 0:01:37.8]} 20. Qd3 {[%clk 0:00:30.7]} 20... g6 {[%clk 0:01:34.3]}
21. Qe4 {[%clk 0:00:27.2]} 21... Rh5 {[%clk 0:01:28.3]} 22. b4 {[%clk
0:00:25.9]} 22... Rd5 {[%clk 0:01:26.8]} 23. f3 {[%clk 0:00:15.2]} 23... c5
{[%clk 0:01:26.3]} 24. Qe3 {[%clk 0:00:15.7]} 24... cxb4 {[%clk 0:01:25.1]} 25.
Qb6 {[%clk 0:00:15.9]} 25... Bc5+ {[%clk 0:01:24.8]} 0-1

[Event "*** Titled Tuesday Blitz"]
[Site "Chess.com"]
[Date "2020.04.21"]
[Round "9"]
[White "Shazuli9878"]
[Black "MarcoCorvi"]
[Result "1-0"]
[WhiteElo "2405"]
[BlackElo "2186"]
[TimeControl "180+1"]
[EndTime "11:48:06 PDT"]
[Termination "Shazuli9878 won by resignation"]

1. Nf3 {[%clk 0:03:00]} 1... f5 {[%clk 0:02:34.4]} 2. d4 {[%clk 0:03:00.9]} 2...
Nf6 {[%clk 0:02:33.6]} 3. g3 {[%clk 0:03:01.8]} 3... g6 {[%clk 0:02:33.8]} 4.
Bg2 {[%clk 0:03:02.7]} 4... Bg7 {[%clk 0:02:34.2]} 5. O-O {[%clk 0:03:03.6]}
5... d6 {[%clk 0:02:34.6]} 6. c4 {[%clk 0:03:04.5]} 6... O-O {[%clk 0:02:34.8]}
7. Nc3 {[%clk 0:03:05.4]} 7... Nc6 {[%clk 0:02:34.7]} 8. b3 {[%clk 0:03:04.7]}
8... e5 {[%clk 0:02:33.6]} 9. Bb2 {[%clk 0:03:04.9]} 9... e4 {[%clk 0:02:33]}
10. Ne1 {[%clk 0:03:04.7]} 10... Bd7 {[%clk 0:02:32.1]} 11. e3 {[%clk
0:03:04.9]} 11... Ne7 {[%clk 0:02:30.2]} 12. Rc1 {[%clk 0:03:04.9]} 12... c6
{[%clk 0:02:29.7]} 13. d5 {[%clk 0:03:03.1]} 13... c5 {[%clk 0:02:25.9]} 14. f3
{[%clk 0:03:03.3]} 14... exf3 {[%clk 0:02:17.5]} 15. Bxf3 {[%clk 0:03:04.2]}
15... g5 {[%clk 0:02:13.4]} 16. Qc2 {[%clk 0:03:02.1]} 16... Ng6 {[%clk
0:02:09.5]} 17. e4 {[%clk 0:02:59.4]} 17... f4 {[%clk 0:02:04.2]} 18. Ne2 {[%clk
0:02:59]} 18... g4 {[%clk 0:01:55.1]} 19. Bh1 {[%clk 0:02:49.6]} 19... f3 {[%clk
0:01:52.7]} 20. Nxf3 {[%clk 0:02:49.7]} 20... gxf3 {[%clk 0:01:51.2]} 21. Bxf3
{[%clk 0:02:50.6]} 21... Qe7 {[%clk 0:01:44.1]} 22. Nf4 {[%clk 0:02:43.7]} 22...
Nxf4 {[%clk 0:01:35.5]} 23. gxf4 {[%clk 0:02:44]} 23... Kh8 {[%clk 0:01:31]} 24.
e5 {[%clk 0:02:43.3]} 24... Ng8 {[%clk 0:01:09]} 25. e6 {[%clk 0:02:38]} 25...
Be8 {[%clk 0:01:06.9]} 26. Be4 {[%clk 0:02:37.7]} 26... Nf6 {[%clk 0:00:57.8]}
27. Bd3 {[%clk 0:02:37.5]} 27... Rg8 {[%clk 0:00:54.5]} 28. Kh1 {[%clk
0:02:37.6]} 28... Bh5 {[%clk 0:00:49.4]} 29. Rf2 {[%clk 0:02:34.8]} 29... Raf8
{[%clk 0:00:48.9]} 30. Rg1 {[%clk 0:02:34.3]} 30... Ne8 {[%clk 0:00:48.1]} 31.
Bxh7 {[%clk 0:02:24.1]} 31... Bxb2 {[%clk 0:00:35.1]} 32. Bxg8 {[%clk
0:02:22.2]} 32... Rxg8 {[%clk 0:00:27.3]} 33. Qxb2+ {[%clk 0:02:21.1]} 33... Qf6
{[%clk 0:00:17.1]} 34. Qxf6+ {[%clk 0:02:18.9]} 34... Nxf6 {[%clk 0:00:18]} 35.
Rg5 {[%clk 0:02:19.2]} 35... Ne4 {[%clk 0:00:12.4]} 36. Rxh5+ {[%clk 0:02:18.7]}
36... Kg7 {[%clk 0:00:10.1]} 37. Rg2+ {[%clk 0:02:18.2]} 37... Kf8 {[%clk
0:00:09.4]} 38. e7+ {[%clk 0:02:17.8]} 38... Kxe7 {[%clk 0:00:08.8]} 39. Rxg8
{[%clk 0:02:17.6]} 1-0